bitfinex-derivatives/quotes_ETHF0:USTF0_20250910
["timestamp","ask_amount","ask_price","bid_price","bid_amount"]
[1757492907115,0.96745397,4331.1,4331.0,0.2051]
[1757492907317,0.96745397,4331.1,4331.0,0.5214]
[1757492907719,1.26755397,4331.1,4331.0,0.7385]
[1757492909117,1.26755397,4331.1,4330.5,0.122]
[1757492909118,1.26755397,4331.1,4330.6,0.3163]
[1757492909310,0.56863911,4331.0,4330.6,0.3163]
[1757492909514,0.6989,4330.7,4330.6,0.7385]
[1757492912308,0.6989,4330.7,4330.6,0.5214]
[1757492913719,1.26740634,4330.7,4330.6,0.3163]
[1757492916923,1.26740634,4330.7,4330.6,0.7385]
[1757492918216,0.56850634,4330.7,4330.6,0.7385]
[1757492918724,0.6989,4331.6,4331.5,0.8584]
[1757492919019,1.26742638,4331.6,4331.5,0.8584]
[1757492919722,1.26742638,4331.6,4331.5,0.7385]
[1757492921414,1.26742638,4331.6,4331.0,0.1199]
[1757492921723,0.3988,4331.2,4331.1,0.2051]
[1757492921921,1.26742638,4331.2,4331.1,0.7385]
[1757492927026,0.96732638,4331.2,4331.1,0.7385]
[1757492927226,0.56852638,4331.2,4331.1,0.7385]
[1757492927425,0.56852638,4331.2,4331.1,0.4222]
[1757492927620,0.56852638,4331.4,4331.1,0.4222]
[1757492927926,0.56852638,4331.3,4331.2,0.2965]
[1757492928122,0.2107,4331.3,4331.2,0.7005]
[1757492928323,0.77922638,4331.3,4331.2,0.7005]
[1757492930026,1.29962638,4331.3,4331.2,0.7005]
[1757492930226,1.29962638,4331.3,4331.2,0.4949]
[1757492930927,0.97922638,4331.3,4331.2,0.7005]
[1757492931626,0.77922638,4331.3,4331.2,0.7005]
[1757492934916,0.56852638,4331.3,4331.2,0.7005]
[1757492935122,0.56852638,4331.7,4331.2,0.7005]
[1757492935322,0.77922638,4331.7,4331.6,0.7005]
[1757492935522,1.29962638,4331.7,4331.6,0.7005]
[1757492935726,1.29962638,4331.7,4331.1,0.2965]
[1757492935925,0.7311,4331.2,4330.5,0.1199]
[1757492936223,0.7311,4330.6,4330.5,0.5239]
[1757492936621,0.7311,4330.6,4330.5,0.8204]
[1757492937219,0.7311,4330.6,4330.5,0.7005]
[1757492939830,0.4107,4330.6,4330.5,0.8192]
[1757492940531,0.7311,4330.6,4330.5,0.8192]
[1757492942133,0.4107,4330.6,4330.5,0.8192]
[1757492943131,0.2107,4330.6,4330.5,0.8192]
[1757492945331,0.2107,4330.7,4330.6,0.7005]
[1757492945530,0.77995485,4330.7,4330.6,0.7005]
[1757492945734,1.30035485,4330.7,4330.6,0.7005]
[1757492947334,0.97995485,4330.7,4330.6,0.7005]
[1757492948234,0.9800305,4330.7,4330.6,0.7005]
[1757492948931,0.7800305,4330.7,4330.6,0.7005]
[1757492950229,0.5693305,4330.7,4330.6,0.7005]
[1757492951436,0.3204,4331.2,4330.6,0.7005]
[1757492951635,0.3204,4331.0,4330.7,0.2965]
[1757492951933,0.7311,4331.0,4330.9,0.7005]
[1757492952134,1.30044861,4331.0,4330.9,0.7005]
[1757492953032,0.98004861,4331.0,4330.9,0.7005]
[1757492953437,1.30044861,4331.0,4330.9,0.7005]
[1757492954334,1.30044861,4331.0,4330.9,0.2965]
[1757492954536,1.40884861,4331.0,4330.6,0.2965]
[1757492954835,0.5311,4330.6,4330.5,0.5227]
[1757492955334,0.2107,4330.6,4330.5,0.8192]
[1757492955634,0.78004861,4330.6,4330.5,0.8192]
[1757492956637,1.30044861,4330.6,4330.5,0.8192]
[1757492957137,0.98004861,4330.6,4330.5,0.8192]
[1757492958436,1.28584861,4330.6,4330.0,0.1221]
[1757492958639,0.5693599,4330.5,4330.0,0.1221]
[1757492958837,0.7165,4330.6,4330.0,0.1221]
[1757492959035,0.2127,4330.1,4330.0,0.3197]
[1757492959236,0.7272,4330.1,4330.0,0.8367]
[1757492959738,0.7272,4330.1,4330.0,0.7146]
[1757492959934,1.29660054,4330.1,4330.0,0.8343]
[1757492962134,0.7272,4330.1,4330.0,0.8343]
[1757492966238,0.7272,4330.1,4330.0,0.7146]
[1757492968540,1.29622628,4330.1,4330.0,0.7146]
[1757492969436,0.7272,4330.1,4330.0,0.8343]
[1757492971137,0.7272,4330.1,4330.0,0.7146]
[1757492972643,0.7272,4330.1,4330.0,0.8343]
[1757492974138,1.29612252,4330.1,4330.0,0.3138]
[1757492974444,1.29612252,4330.1,4329.6,0.3138]
[1757492974745,0.1076,4330.5,4329.6,0.7146]
[1757492974746,0.7272,4329.7,4329.6,0.7146]
[1757492977042,0.4214,4329.7,4329.6,0.7146]
[1757492977343,0.3058,4330.0,4329.7,0.3138]
[1757492978051,0.7272,4330.4,4330.3,0.4008]
[1757492978249,0.99026204,4330.4,4330.3,0.7146]
[1757492978541,1.29606204,4330.4,4330.3,0.7146]
[1757492980248,1.29606204,4330.4,4330.3,0.5114]
[1757492980947,0.99026204,4330.4,4330.3,0.7146]
[1757492981340,0.78156204,4330.4,4330.3,0.7146]
[1757492981545,0.56886204,4330.4,4330.3,0.7146]
[1757492981746,0.3058,4331.2,4330.4,0.3138]
[1757492981951,0.7815457,4331.1,4331.0,0.6367]
[1757492982246,1.2960457,4331.1,4331.0,0.8343]
[1757492982838,1.2960457,4331.1,4331.0,0.3138]
[1757492983044,1.2960457,4331.1,4330.5,0.1197]
[1757492983349,0.2127,4330.7,4330.6,0.7146]
[1757492983542,0.7815457,4330.7,4330.6,0.7146]
[1757492984551,1.2960457,4330.7,4330.6,0.7146]
[1757492986655,1.2960457,4330.7,4330.1,0.3138]
[1757492986849,0.2127,4330.2,4330.1,0.7146]
[1757492990358,0.3123,4330.9,4330.2,0.3099]
[1757492990661,1.28863869,4330.8,4330.7,0.723]
[1757492991859,0.56903869,4330.8,4330.7,0.723]
[1757492992556,0.76973869,4330.8,4330.7,0.723]
[1757492993757,0.97633869,4330.8,4330.7,0.723]
[1757492994060,1.28863869,4330.8,4330.7,0.723]
[1757492996264,0.97633869,4330.8,4330.7,0.723]
[1757493000666,0.76973869,4330.8,4330.7,0.723]
[1757493000860,0.56903869,4330.8,4330.7,0.723]
[1757493001364,0.97633869,4330.8,4330.7,0.723]
[1757493001564,1.28863869,4330.8,4330.7,0.723]
[1757493004570,0.76973869,4330.8,4330.7,0.723]
[1757493005668,0.56903869,4330.8,4330.7,0.723]
[1757493006369,0.76973869,4330.8,4330.7,0.723]
[1757493006966,1.08203869,4330.8,4330.7,0.723]
[1757493007570,0.76973869,4330.8,4330.7,0.723]
[1757493010376,0.56903869,4330.8,4330.7,0.723]
[1757493011473,0.76973869,4330.8,4330.7,0.723]
[1757493012480,0.56903869,4330.8,4330.7,0.723]
[1757493015083,0.76973869,4330.8,4330.7,0.723]
[1757493021292,0.2007,4330.8,4330.7,0.723]
[1757493024080,0.3072,4331.5,4330.8,0.3063]
[1757493024279,0.7297,4331.5,4331.4,0.5054]
[1757493024488,1.29969054,4331.5,4331.4,0.5054]
[1757493024793,1.40959054,4331.5,4331.0,0.1233]
[1757493024997,0.7297,4331.2,4331.1,0.5054]
[1757493025195,1.29969054,4331.2,4331.1,0.5054]
[1757493029293,0.99249054,4331.2,4331.1,0.7073]
[1757493029696,1.29969054,4331.2,4331.1,0.7073]
[1757493031394,1.29969054,4331.2,4331.1,0.5054]
[1757493032196,1.29969054,4331.2,4330.6,0.3063]
[1757493032397,0.7297,4330.7,4330.6,0.3063]
[1757493032592,1.29969054,4330.7,4330.6,0.3063]
[1757493034198,1.29969054,4330.7,4330.6,0.5054]
[1757493034591,1.29969054,4330.7,4330.6,0.7073]
[1757493034799,0.4225,4330.7,4330.6,0.7073]
[1757493035799,0.3072,4331.4,4330.7,0.3063]
[1757493036090,1.29994875,4331.3,4331.2,0.401]
[1757493036298,1.29994875,4331.3,4331.2,0.7073]
[1757493039694,0.57024875,4331.3,4331.2,0.7073]
[1757493039891,0.3072,4331.9,4331.2,0.7073]
[1757493040094,0.5154,4331.9,4331.8,0.7073]
[1757493040695,1.08556959,4331.9,4331.8,0.7073]
[1757493041299,0.77836959,4331.9,4331.8,0.7073]
[1757493042000,0.57016959,4331.9,4331.8,0.89160776]
[1757493042595,0.5154,4332.4,4332.3,0.1991]
[1757493042796,1.29910229,4332.4,4332.3,0.5054]
[1757493043896,0.77760229,4332.4,4332.3,0.7073]
[1757493044101,0.2082,4332.4,4332.3,0.7073]
[1757493044298,0.5154,4332.4,4332.3,0.7073]
[1757493044599,0.7297,4332.4,4332.3,0.7073]
[1757493047405,0.6434,4333.0,4332.9,0.2024]
[1757493047604,1.21165529,4333.0,4332.9,0.5119]
[1757493047902,1.52735529,4333.0,4332.9,0.5119]
[1757493050004,1.52735529,4333.0,4332.9,0.3095]
[1757493050204,1.63535529,4333.0,4332.5,0.127]
[1757493050399,0.7261,4332.7,4332.6,0.5119]
[1757493050998,0.7261,4332.7,4332.6,0.7177]
[1757493053504,0.7261,4332.7,4332.6,0.5119]
[1757493055406,0.7261,4332.6,4332.5,1.81419824]
[1757493055604,0.7261,4332.6,4332.1,0.3095]
[1757493058711,0.7261,4332.6,4332.3,0.3095]
[1757493058914,0.1076,4332.5,4332.3,0.3095]
[1757493059103,0.5487,4333.4,4332.5,0.127]
[1757493059308,0.56798126,4333.3,4332.6,0.3095]
[1757493059504,0.2045,4332.7,4332.6,0.7177]
[1757493060213,0.5202,4333.3,4333.2,0.2024]
[1757493060512,1.29411309,4333.3,4333.2,0.7177]
[1757493060908,1.29411309,4333.3,4333.2,0.5119]
[1757493061112,0.97841309,4333.3,4332.6,0.3095]
[1757493061314,1.29414184,4333.2,4333.1,0.2024]
[1757493061514,1.29414184,4333.2,4333.1,0.5119]
[1757493064721,1.29414184,4333.2,4333.1,0.7177]
[1757493065619,1.29414184,4333.2,4333.1,0.5119]
[1757493072823,0.4104,4329.9,4329.8,0.3095]
[1757493073023,0.4104,4329.7,4329.1,0.3095]
[1757493073322,0.80117565,4329.9,4329.0,0.127]
[1757493073323,0.4583,4329.5,4329.4,0.5119]
[1757493073524,1.02600009,4329.5,4329.4,0.7177]
[1757493073926,0.2309,4329.9,4329.4,0.7177]
[1757493073927,0.2309,4329.9,4329.8,0.4082]
[1757493074127,0.2309,4329.9,4329.8,0.7177]
[1757493082231,0.4275,4329.9,4329.8,0.7177]
[1757493083022,0.2309,4329.9,4329.8,0.7177]
[1757493087028,0.3139,4331.1,4330.0,0.1288]
[1757493087231,0.1966,4330.2,4330.1,0.7136]
[1757493090230,0.3139,4330.5,4330.2,0.295]
[1757493090420,0.5105,4330.5,4330.4,0.4186]
[1757493090622,0.5105,4330.5,4330.4,0.7136]
[1757493090827,0.7093,4330.5,4330.4,0.7136]
[1757493096830,0.3954,4330.5,4330.4,0.7136]
[1757493097036,0.1966,4330.5,4330.4,0.7136]
[1757493097734,0.5105,4330.5,4330.4,0.7136]
[1757493098431,0.1966,4330.5,4330.4,0.7136]
[1757493098626,0.5105,4330.8,4330.7,0.4186]
[1757493098833,1.33089241,4330.8,4330.7,0.7136]
[1757493102035,1.33089241,4330.8,4330.7,0.5107]
[1757493110941,1.56489241,4330.8,4330.7,0.5107]
[1757493111341,0.81819241,4330.8,4330.7,0.7189]
[1757493111647,1.56009241,4330.8,4330.7,0.7189]
[1757493113452,1.56009241,4330.8,4330.7,0.5107]
[1757493113652,1.56009241,4330.8,4330.7,0.295]
[1757493114044,1.56009241,4330.8,4330.7,0.7013]
[1757493119758,1.56009241,4330.8,4330.7,0.716]
[1757493120761,1.24789241,4330.8,4330.7,0.716]
[1757493121562,1.56009241,4330.8,4330.7,0.716]
[1757493121963,1.56009241,4330.8,4330.1,0.3097]
[1757493122157,0.4113,4330.2,4330.1,0.716]
[1757493122462,1.03289241,4330.2,4330.1,0.716]
[1757493123660,1.34509241,4330.2,4330.1,0.716]
[1757493131868,1.34509241,4330.2,4330.1,0.5078]
[1757493132065,1.34509241,4330.2,4329.6,0.3097]
[1757493132264,0.1241,4330.5,4329.6,0.716]
[1757493132265,0.2156,4329.7,4329.6,0.716]
[1757493140079,0.84078424,4329.7,4329.6,0.716]
[1757493140270,0.8407307,4329.7,4329.6,0.716]
[1757493140980,1.1516307,4329.7,4329.6,0.716]
[1757493141374,0.7393,4329.7,4329.6,0.716]
[1757493144583,0.1994,4329.0,4328.9,0.5242]
[1757493144882,0.7231,4329.0,4328.9,0.5242]
[1757493145077,1.34806154,4329.0,4328.9,0.5242]
[1757493149286,1.46736154,4329.0,4328.5,0.1249]
[1757493149481,0.8424,4329.0,4328.5,0.1249]
[1757493149790,0.8424,4329.0,4328.6,0.3123]
[1757493151292,0.8424,4329.0,4328.5,0.1249]
[1757493151585,0.8424,4329.0,4328.6,0.3123]
[1757493151796,0.8424,4329.0,4328.5,0.1249]
[1757493151990,0.8424,4329.0,4328.6,0.3123]
[1757493152590,0.8424,4329.0,4328.9,0.2119]
[1757493152995,0.1994,4329.0,4328.9,0.7285]
[1757493153194,0.5103,4329.3,4329.2,0.4162]
[1757493153386,0.7231,4329.3,4329.2,0.7285]
[1757493153587,1.34617603,4329.3,4329.2,0.7285]
[1757493154488,1.03527603,4329.3,4329.2,0.7285]
[1757493154686,0.82247603,4329.3,4329.2,0.7285]
[1757493154895,0.62307603,4329.3,4329.2,0.7285]
[1757493155188,1.23870875,4331.7,4329.0,0.118]
[1757493155189,0.7231,4329.8,4329.7,0.7285]
[1757493155495,1.34605673,4329.8,4329.1,0.3123]
[1757493155695,0.7231,4329.2,4329.1,0.5242]
[1757493156194,0.7231,4329.2,4329.1,0.7285]
[1757493162695,0.7231,4329.2,4329.1,0.5242]
[1757493164492,0.7231,4329.2,4329.1,0.3123]
[1757493165086,1.34653191,4329.2,4329.1,0.5242]
[1757493165491,1.34653191,4329.2,4328.6,0.3123]
[1757493165694,0.7231,4329.2,4328.6,0.3123]
[1757493166694,0.62362405,4329.1,4328.6,0.3123]
[1757493166898,0.1193,4329.5,4328.6,0.7285]
[1757493166899,0.7231,4328.7,4328.6,0.7285]
[1757493173499,1.34765544,4328.7,4328.6,0.7285]
[1757493183301,1.34797614,4328.7,4328.6,0.7285]
[1757493189324,1.03707614,4328.7,4328.6,0.7285]
[1757493189525,0.82427614,4328.7,4328.6,0.7285]
[1757493190123,1.14697614,4328.7,4328.6,0.7285]
[1757493190318,1.36017614,4328.7,4328.6,0.7285]
[1757493195929,1.36017614,4328.7,4328.6,0.5242]
[1757493197828,1.36017614,4328.7,4328.6,0.7305]
[1757493200130,0.82427614,4328.7,4328.6,0.7305]
[1757493203837,1.12887614,4328.7,4328.6,0.7305]
[1757493204037,1.33497614,4328.7,4328.6,0.7305]
[1757493206342,1.3357634,4328.7,4328.6,0.7305]
[1757493209047,1.3357634,4328.7,4328.6,0.3123]
[1757493209435,1.3357634,4328.7,4328.6,0.5137]
[1757493210545,1.3357634,4328.7,4328.6,0.7213]
[1757493211349,0.6256634,4328.7,4328.6,0.7213]
[1757493214148,1.1469634,4328.7,4328.6,0.7213]
[1757493214348,1.3530634,4328.7,4328.6,0.3123]
[1757493214545,1.3530634,4328.7,4328.6,0.7213]
[1757493216953,1.3530634,4328.7,4328.3,0.3156]
[1757493217252,0.7274,4328.3,4328.2,0.60031126]
[1757493217653,0.4228,4328.3,4328.2,0.91591126]
[1757493218857,0.2167,4328.3,4328.2,0.91591126]
[1757493219553,0.5213,4328.3,4328.2,0.91591126]
[1757493219750,0.2167,4328.3,4328.2,0.91591126]
[1757493219949,0.5213,4328.9,4328.8,0.2014]
[1757493220155,1.35288473,4328.9,4328.8,0.517]
[1757493223659,1.35288473,4328.9,4328.3,0.3156]
[1757493223960,0.7274,4328.4,4328.3,0.517]
[1757493224458,0.7274,4328.4,4328.3,0.7246]
[1757493227756,0.1193,4329.5,4328.6,0.7445]
[1757493227757,0.2104,4328.7,4328.6,0.7445]
[1757493227952,0.83584691,4328.7,4328.6,0.7445]
[1757493228150,1.13614691,4328.7,4328.6,0.7445]
[1757493228349,1.34784691,4328.7,4328.6,0.7445]
[1757493229456,1.34784691,4328.7,4328.6,0.5291]
[1757493229656,1.34784691,4328.7,4328.3,0.3211]
[1757493229855,0.7224,4328.4,4328.3,0.3211]
[1757493230156,1.34784691,4328.4,4328.3,0.5291]
[1757493232253,1.34784691,4328.4,4328.3,0.3211]
[1757493232457,1.34784691,4328.4,4328.2,0.0034646]
[1757493232666,1.34784691,4328.3,4328.2,0.0034646]
[1757493232956,5.34784691,4328.3,4328.2,0.0034646]
[1757493233255,5.34784691,4328.3,4327.3,0.3211]
[1757493233256,5.57888691,4328.3,4327.3,0.3211]
[1757493233559,0.7224,4327.4,4327.3,0.7445]
[1757493237058,0.4221,4327.4,4327.3,0.7445]
[1757493238360,0.3003,4327.9,4327.4,0.3211]
[1757493238550,0.3003,4328.3,4327.5,0.1276]
[1757493238751,0.2104,4327.7,4327.6,0.7445]
[1757493240058,0.7224,4327.7,4327.6,0.7445]
[1757493242169,0.7224,4327.7,4327.6,0.5291]
[1757493242364,0.3003,4327.6,4327.4,0.3211]
[1757493242571,0.5107,4327.6,4327.5,0.8721]
[1757493242772,0.7224,4327.6,4327.5,0.8721]
[1757493244174,0.4221,4327.6,4327.5,0.8721]
[1757493244376,0.2104,4327.6,4327.5,0.8721]
[1757493244565,0.4221,4327.7,4327.6,0.7445]
[1757493244873,0.7224,4327.7,4327.6,0.7445]
[1757493245567,0.7224,4327.7,4327.6,0.5291]
[1757493246272,0.3003,4327.9,4327.3,0.3211]
[1757493246573,0.7224,4327.4,4327.3,0.3211]
[1757493246968,0.7224,4327.4,4327.3,0.5291]
[1757493248668,0.7224,4327.4,4327.3,0.7445]
[1757493250674,0.7224,4327.4,4327.3,0.5291]
[1757493251976,0.3003,4327.3,4326.6,2.16273224]
[1757493252177,0.7224,4326.7,4326.6,2.45188953]
[1757493252574,0.4221,4326.7,4326.6,2.77298953]
[1757493252972,0.4221,4326.7,4326.6,0.93135729]
[1757493253172,0.4221,4326.7,4326.6,0.7445]
[1757493253976,0.2104,4326.7,4326.6,0.7445]
[1757493254176,0.2104,4326.7,4326.6,0.93181848]
[1757493254375,0.7224,4327.4,4327.3,0.7445]
[1757493254779,0.7224,4327.4,4327.3,0.5291]
[1757493254974,0.7224,4327.4,4327.1,0.3211]
[1757493255173,0.7224,4327.4,4326.7,0.3211]
[1757493255379,0.7224,4326.8,4326.7,0.7445]
[1757493259571,0.7224,4326.8,4326.7,0.5291]
[1757493260580,0.7224,4326.8,4326.7,0.7367]
[1757493275995,0.2104,4326.8,4326.7,0.7367]
[1757493276195,0.1183,4327.5,4326.7,0.4156]
[1757493276396,0.5069,4326.9,4326.8,0.7392]
[1757493276601,1.33128838,4326.9,4326.8,0.7392]
[1757493277994,0.62588838,4326.9,4326.8,0.7392]
[1757493278297,0.3114,4327.7,4327.0,0.1278]
[1757493278497,0.7054,4327.2,4327.1,0.7392]
[1757493278689,1.33139029,4327.2,4327.1,0.7392]
[1757493279088,1.33139029,4327.2,4327.1,0.5316]
[1757493280697,1.33139029,4327.2,4327.1,0.322]
[1757493281498,1.33139029,4327.2,4326.5,0.1276]
[1757493281698,0.5069,4326.7,4326.6,0.7392]
[1757493282101,0.1955,4326.7,4326.6,0.7392]
[1757493284002,0.3114,4326.9,4326.6,0.7392]
[1757493284190,0.3114,4326.9,4326.7,0.322]
[1757493285201,0.7054,4326.9,4326.8,0.7392]
[1757493286693,0.394,4326.9,4326.8,0.7392]
[1757493286896,0.1955,4326.9,4326.8,0.7392]
[1757493287297,0.4922,4326.9,4326.8,0.7392]
[1757493287797,0.1955,4326.9,4326.8,0.7392]
[1757493289801,0.6928,4326.9,4326.8,0.7392]
[1757493298107,0.3961,4326.9,4326.8,0.7392]
[1757493298303,0.3061,4326.9,4326.8,0.7392]
[1757493298509,0.1055,4326.9,4326.8,0.7392]
[1757493298713,0.3061,4326.9,4326.8,0.7392]
[1757493299409,0.6028,4326.9,4326.8,0.7392]
[1757493300711,1.22860164,4326.9,4326.8,0.5348]
[1757493301106,5.45972164,4326.9,4326.1,0.2964]
[1757493301305,0.6944,4326.2,4326.1,0.5092]
[1757493301612,1.32020164,4326.2,4326.1,0.5092]
[1757493301820,1.32020164,4326.2,4326.1,0.7051]
[1757493302816,1.02350164,4326.2,4326.1,0.7051]
[1757493303211,0.3977,4326.2,4326.1,0.7051]
[1757493303409,0.6944,4326.2,4326.1,0.7051]
[1757493303913,0.1971,4326.2,4326.1,0.7051]
[1757493304502,0.2967,4326.9,4326.2,0.2964]
[1757493304711,1.05386148,4326.8,4326.7,0.7051]
[1757493305206,1.02333148,4326.8,4326.7,0.7051]
[1757493306112,1.32003148,4326.8,4326.7,0.7051]
[1757493308415,0.62563148,4326.8,4326.7,0.7051]
[1757493308614,0.82273148,4326.8,4326.7,0.7051]
[1757493309012,1.02333148,4326.8,4326.7,0.7051]
[1757493309212,1.32003148,4326.8,4326.7,0.7051]
[1757493312313,0.82273148,4326.8,4326.7,0.7051]
[1757493312617,0.62563148,4326.8,4326.7,0.7051]
[1757493316517,0.233,4327.7,4326.8,0.2964]
[1757493316718,0.2967,4327.5,4326.8,0.2964]
[1757493316918,1.31921421,4327.4,4327.3,0.5115]
[1757493321121,0.5552,4328.1,4327.3,0.7272]
[1757493321315,1.37526507,4328.0,4327.9,0.7126]
[1757493325820,1.37526507,4328.0,4327.9,0.4969]
[1757493326924,1.37526507,4328.0,4327.6,0.2987]
[1757493327121,0.62516507,4327.9,4327.7,0.2987]
[1757493327330,1.05306507,4327.8,4327.7,0.2987]
[1757493327523,1.05306507,4327.8,4327.7,0.4969]
[1757493327722,1.37526507,4327.8,4327.7,0.4969]
[1757493329119,0.7501,4327.8,4327.7,0.4969]
[1757493330430,0.7501,4327.8,4327.7,0.7126]
[1757493333830,0.7501,4327.8,4327.7,0.4969]
[1757493334621,0.4279,4327.8,4327.7,0.7126]
[1757493336027,0.7501,4327.8,4327.7,0.2987]
[1757493336236,1.37683458,4327.8,4327.1,0.2987]
[1757493336530,0.1181,4328.0,4327.1,0.2987]
[1757493336531,0.7501,4327.2,4327.1,0.4969]
[1757493337125,0.7501,4327.2,4327.1,0.7126]
[1757493337333,0.7501,4327.2,4327.1,0.90089899]
[1757493337626,0.3222,4327.6,4327.1,0.60219899]
[1757493337829,0.2115,4327.6,4327.5,0.8393]
[1757493338530,0.83828211,4327.6,4327.5,0.8393]
[1757493339827,1.37688211,4327.6,4327.5,0.8393]
[1757493340134,1.37688211,4327.6,4327.1,0.2987]
[1757493340434,0.7501,4327.2,4327.1,0.7126]
[1757493340630,0.4279,4327.2,4327.1,0.7126]
[1757493341831,0.7501,4327.2,4327.1,0.7126]
[1757493343727,0.4279,4327.2,4327.1,0.7126]
[1757493345236,0.7501,4327.2,4327.1,0.7126]
[1757493345435,1.3776898,4327.2,4326.6,0.2987]
[1757493345738,0.2115,4326.7,4326.6,0.7126]
[1757493352339,0.1182,4327.5,4326.7,0.2973]
[1757493352536,0.7377,4327.3,4327.2,0.2021]
[1757493352736,1.3660782,4327.3,4327.2,0.7014]
[1757493353439,1.3660782,4327.3,4327.2,0.4994]
[1757493354944,1.3660782,4327.3,4327.2,0.2973]
[1757493357438,1.0501782,4327.3,4327.2,0.7014]
[1757493357644,1.3660782,4327.3,4327.2,0.7014]
[1757493358148,1.3660782,4327.3,4327.2,0.4994]
[1757493358445,0.7377,4326.6,4326.5,0.5282]
[1757493358945,0.7377,4326.6,4326.5,0.8255]
[1757493360449,0.4218,4326.6,4326.5,0.8255]
[1757493362048,0.2054,4326.6,4326.5,0.8255]
[1757493363339,0.3159,4327.0,4326.5,0.8255]
[1757493363541,1.36713662,4326.9,4326.8,0.4041]
[1757493363746,1.36713662,4326.9,4326.8,0.7014]
[1757493364545,1.05123662,4326.9,4326.8,0.7014]
[1757493368949,1.36713662,4326.9,4326.8,0.7014]
[1757493369452,1.36713662,4326.9,4326.8,0.4994]
[1757493369851,1.05123662,4326.9,4326.1,0.2973]
[1757493370040,0.7377,4326.2,4326.1,0.4994]
[1757493370245,0.7377,4326.2,4326.1,0.7014]
[1757493371854,0.4218,4326.2,4326.1,0.7014]
[1757493373955,0.7377,4326.2,4326.1,0.7014]
[1757493375253,0.7377,4326.2,4326.1,0.4994]
[1757493376054,1.3670771,4326.2,4326.1,0.4994]
[1757493376459,1.3670771,4326.2,4325.8,0.2973]
[1757493376748,0.7377,4326.2,4325.7,0.18796656]
[1757493376957,0.7377,4326.2,4325.8,0.2973]
[1757493379254,0.4218,4326.2,4325.8,0.2973]
[1757493379449,0.3062,4326.1,4325.8,0.2973]
[1757493379652,0.2012,4326.1,4326.0,0.21]
[1757493379847,0.7074,4326.1,4326.0,0.5236]
[1757493381152,0.7074,4326.1,4326.0,0.6508]
[1757493381553,0.7074,4326.1,4326.0,0.849]
[1757493382855,0.4012,4326.1,4326.0,0.849]
[1757493383554,0.7074,4326.1,4326.0,0.3136]
[1757493384257,0.7074,4326.1,4326.0,0.5236]
[1757493385254,0.7074,4326.1,4326.0,0.3136]
[1757493385458,0.7074,4326.1,4326.0,0.849]
[1757493385658,1.34057904,4326.1,4326.0,0.849]
[1757493385955,1.03437904,4326.1,4326.0,0.849]
[1757493387449,1.34057904,4326.1,4326.0,0.849]
[1757493388161,1.03437904,4326.1,4326.0,0.849]
[1757493389053,1.34057904,4326.1,4326.0,0.849]
[1757493389258,0.4012,4325.6,4325.5,0.3117669]
[1757493389461,0.7074,4325.6,4325.5,0.8353669]
[1757493389654,0.7074,4325.6,4325.5,1.0335669]
[1757493390153,0.3062,4325.9,4325.5,0.7199669]
[1757493390354,0.3062,4326.3,4325.6,0.3136]
[1757493390559,1.34068778,4326.2,4326.1,0.5236]
[1757493391060,1.34069804,4326.2,4326.1,0.5236]
[1757493392163,1.34069804,4326.2,4326.1,0.3136]
[1757493392561,1.34069804,4326.2,4325.6,0.3136]
[1757493392766,0.4012,4325.7,4325.6,0.7218]
[1757493392954,0.7074,4325.7,4325.6,0.7218]
[1757493393161,1.34078338,4325.7,4325.6,0.5236]
[1757493394063,1.34078338,4325.7,4325.6,0.3136]
[1757493396160,1.34078338,4325.7,4325.1,0.3136]
[1757493396364,1.03458338,4325.6,4325.5,0.21]
[1757493396566,1.34078338,4325.6,4325.5,0.5236]
[1757493397466,1.34078338,4325.6,4325.5,0.6508]
[1757493400066,0.83338338,4325.6,4325.5,0.849]
[1757493400960,0.63338338,4325.6,4325.5,0.849]
[1757493403770,0.7074,4326.1,4326.0,0.6508]
[1757493403964,1.34056195,4326.1,4326.0,0.6508]
[1757493404671,1.03436195,4326.1,4326.0,0.849]
[1757493405465,1.34056195,4326.1,4326.0,0.849]
[1757493405770,1.03436195,4326.1,4326.0,0.849]
[1757493405973,1.34056195,4326.1,4326.0,0.849]
[1757493408476,0.83316195,4326.1,4326.0,0.849]
[1757493409574,0.63316195,4326.1,4326.0,0.849]
[1757493410173,0.0034646,4326.4,4326.0,0.95146]
[1757493410368,0.84137677,4326.3,4326.2,0.7354]
[1757493414176,0.0034646,4326.4,4326.3,0.7354]
[1757493415774,0.2112646,4326.4,4326.3,0.7354]
[1757493417580,0.0034646,4326.4,4326.3,0.7354]
[1757493426484,0.7234,4327.5,4327.4,0.2132]
[1757493426691,1.35546704,4327.5,4327.4,0.5278]
[1757493428685,1.35546704,4327.5,4327.4,0.3146]
[1757493433402,1.35546704,4327.5,4327.4,0.5278]
[1757493434104,1.35546704,4327.5,4327.4,0.3146]
[1757493434598,1.58846704,4327.5,4327.4,0.3146]
[1757493434794,1.58846704,4327.5,4327.4,0.5278]
[1757493435000,1.58846704,4327.5,4327.4,0.7354]
[1757493436406,1.35546704,4327.5,4327.4,0.7354]
[1757493437006,1.03706704,4327.5,4327.4,0.7354]
[1757493437604,1.34226704,4327.5,4327.4,0.7354]
[1757493438203,0.83986704,4327.5,4327.4,0.7354]
[1757493441708,0.63206704,4327.5,4327.4,0.7354]
[1757493442305,0.7237,4328.1,4328.0,0.197]
[1757493442507,1.35731661,4328.1,4328.0,0.5059]
[1757493442707,1.35731661,4328.1,4328.0,0.8463]
[1757493443208,1.35731661,4328.1,4327.5,0.1299]
[1757493443209,1.35731661,4328.1,4327.6,0.3089]
[1757493443410,0.63361661,4328.0,4327.5,0.1299]
[1757493443611,0.7237,4327.6,4327.5,0.3269]
[1757493444005,0.7237,4327.6,4327.5,0.6358]